[Event "Late-Titled-Tuesday-Blitz-February-06-2024"]
[Site "Chess.com"]
[Date "2024.02.06"]
[Round "4"]
[White "Mistango"]
[Black "Ducke13"]
[Result "1-0"]
[WhiteElo "2498"]
[BlackElo "2288"]
[TimeControl "180+1"]
[EndTime "14:39:39 PST"]
[Termination "Mistango won on time"]

1. e4 {[%clk 0:03:00.9]} 1... c5 {[%clk 0:02:56.6]} 2. Nf3 {[%clk 0:03:00.8]}
2... d6 {[%clk 0:02:55.5]} 3. d4 {[%clk 0:03:01.4]} 3... cxd4 {[%clk 0:02:56.4]}
4. Nxd4 {[%clk 0:03:01.5]} 4... Nf6 {[%clk 0:02:57.1]} 5. Nc3 {[%clk 0:03:01.9]}
5... a6 {[%clk 0:02:57.8]} 6. f4 {[%clk 0:03:00.9]} 6... e5 {[%clk 0:02:56.9]}
7. Nb3 {[%clk 0:03:01.5]} 7... Be7 {[%clk 0:02:47.2]} 8. fxe5 {[%clk 0:03:00.7]}
8... dxe5 {[%clk 0:02:48.1]} 9. Qxd8+ {[%clk 0:03:00.2]} 9... Bxd8 {[%clk
0:02:48.6]} 10. Be3 {[%clk 0:03:00.9]} 10... O-O {[%clk 0:02:46.1]} 11. O-O-O
{[%clk 0:02:58.5]} 11... Nc6 {[%clk 0:02:35.4]} 12. h3 {[%clk 0:02:57.8]} 12...
Be7 {[%clk 0:02:25.6]} 13. g4 {[%clk 0:02:57]} 13... Re8 {[%clk 0:02:00.2]} 14.
g5 {[%clk 0:02:56.1]} 14... Nh5 {[%clk 0:01:56.3]} 15. Nd5 {[%clk 0:02:56.1]}
15... Bd8 {[%clk 0:01:51.4]} 16. Rg1 {[%clk 0:02:51.8]} 16... Be6 {[%clk
0:01:39.6]} 17. h4 {[%clk 0:02:50.4]} 17... Rc8 {[%clk 0:01:24.3]} 18. a3 {[%clk
0:02:45.6]} 18... Nf4 {[%clk 0:01:21.6]} 19. Kb1 {[%clk 0:02:39.2]} 19... Na5
{[%clk 0:01:09.2]} 20. Nxa5 {[%clk 0:02:35.1]} 20... Bxa5 {[%clk 0:01:08.4]} 21.
Nxf4 {[%clk 0:02:14]} 21... exf4 {[%clk 0:01:09.3]} 22. Bxf4 {[%clk 0:02:13.9]}
22... b5 {[%clk 0:01:05.8]} 23. Bd3 {[%clk 0:02:10.8]} 23... b4 {[%clk
0:01:04.3]} 24. axb4 {[%clk 0:02:10.6]} 24... Bxb4 {[%clk 0:01:04.3]} 25. Bd2
{[%clk 0:02:11.3]} 25... a5 {[%clk 0:00:57.4]} 26. Bxb4 {[%clk 0:02:09.7]} 26...
axb4 {[%clk 0:00:58.3]} 27. b3 {[%clk 0:02:10.1]} 27... Rc3 {[%clk 0:00:56.2]}
28. Kb2 {[%clk 0:02:09.7]} 28... Rec8 {[%clk 0:00:55]} 29. Rg2 {[%clk
0:02:09.5]} 29... g6 {[%clk 0:00:54.2]} 30. Rgd2 {[%clk 0:02:10]} 30... Kg7
{[%clk 0:00:46.7]} 31. Ra1 {[%clk 0:02:09.6]} 31... h5 {[%clk 0:00:45.2]} 32.
Ra4 {[%clk 0:02:08.2]} 32... Rb8 {[%clk 0:00:39.3]} 33. Rd1 {[%clk 0:01:53.3]}
33... Rb6 {[%clk 0:00:34.9]} 34. Rd2 {[%clk 0:01:52.8]} 34... Rb8 {[%clk
0:00:34.7]} 35. Ra6 {[%clk 0:01:50]} 35... Rd8 {[%clk 0:00:29.9]} 36. Rb6 {[%clk
0:01:42]} 36... Rd4 {[%clk 0:00:29.6]} 37. Rxb4 {[%clk 0:01:36.6]} 37... Rxc2+
{[%clk 0:00:29.4]} 38. Rxc2 {[%clk 0:01:22.3]} 38... Rxb4 {[%clk 0:00:29.4]} 39.
Bc4 {[%clk 0:01:22.9]} 39... Bg4 {[%clk 0:00:11]} 40. Kc3 {[%clk 0:01:21.8]}
40... Rb7 {[%clk 0:00:10.7]} 41. b4 {[%clk 0:01:21.5]} 41... Bf3 {[%clk
0:00:10.1]} 42. Bd5 {[%clk 0:01:19.3]} 42... Rb6 {[%clk 0:00:10.3]} 43. Kc4
{[%clk 0:01:17.6]} 43... Kf8 {[%clk 0:00:10]} 44. b5 {[%clk 0:01:17.4]} 44...
Rb8 {[%clk 0:00:10.9]} 45. Rb2 {[%clk 0:01:14.7]} 45... Ke7 {[%clk 0:00:10.8]}
46. b6 {[%clk 0:01:13.9]} 46... f6 {[%clk 0:00:10.3]} 47. gxf6+ {[%clk
0:01:11.4]} 47... Kxf6 {[%clk 0:00:10.7]} 48. b7 {[%clk 0:01:11.9]} 48... Ke5
{[%clk 0:00:08.6]} 49. Rb6 {[%clk 0:01:10.3]} 49... g5 {[%clk 0:00:03.8]} 50.
hxg5 {[%clk 0:01:11.2]} 50... h4 {[%clk 0:00:03.9]} 51. Rh6 {[%clk 0:01:11]}
51... Kf4 {[%clk 0:00:01.5]} 52. Rxh4+ {[%clk 0:01:10.8]} 52... Kxg5 {[%clk
0:00:02.4]} 53. Rh7 {[%clk 0:01:10.1]} 53... Be2+ {[%clk 0:00:03.2]} 54. Kc5
{[%clk 0:01:08.4]} 54... Ba6 {[%clk 0:00:04.1]} 55. Kb6 {[%clk 0:01:07.1]} 55...
Bxb7 {[%clk 0:00:04.5]} 56. Rxb7 {[%clk 0:01:06.8]} 56... Re8 {[%clk 0:00:03.2]}
57. Kc5 {[%clk 0:01:06.7]} 57... Kf4 {[%clk 0:00:03.4]} 58. Kd4 {[%clk
0:01:06.7]} 58... Rd8 {[%clk 0:00:02.7]} 59. Rf7+ {[%clk 0:01:06.5]} 59... Kg5
{[%clk 0:00:03.6]} 60. e5 {[%clk 0:01:04.9]} 60... Rb8 {[%clk 0:00:04]} 61. e6
{[%clk 0:01:05]} 61... Re8 {[%clk 0:00:03.5]} 62. Ke5 {[%clk 0:01:05.3]} 62...
Kg6 {[%clk 0:00:04]} 63. Rf1 {[%clk 0:01:03]} 63... Kg7 {[%clk 0:00:03.9]} 64.
Bc6 {[%clk 0:01:01.5]} 64... Rc8 {[%clk 0:00:02.1]} 65. e7 {[%clk 0:01:00.1]}
65... Rb8 {[%clk 0:00:01.3]} 66. e8=Q {[%clk 0:00:59.3]} 66... Rxe8+ {[%clk
0:00:01.3]} 67. Bxe8 {[%clk 0:00:59.9]} 1-0

[Event "Late-Titled-Tuesday-Blitz-February-06-2024"]
[Site "Chess.com"]
[Date "2024.02.06"]
[Round "4"]
[White "Statham_01"]
[Black "spaski2004"]
[Result "0-1"]
[WhiteElo "2592"]
[BlackElo "2945"]
[TimeControl "180+1"]
[EndTime "14:39:42 PST"]
[Termination "spaski2004 won on time"]

1. e4 {[%clk 0:03:00.9]} 1... d5 {[%clk 0:02:18.9]} 2. exd5 {[%clk 0:02:58.8]}
2... Qxd5 {[%clk 0:02:19.8]} 3. Nf3 {[%clk 0:02:54.7]} 3... Nc6 {[%clk
0:02:18.1]} 4. d4 {[%clk 0:02:52.7]} 4... Bg4 {[%clk 0:02:17.6]} 5. Be2 {[%clk
0:02:53]} 5... O-O-O {[%clk 0:02:17.2]} 6. c4 {[%clk 0:02:51.7]} 6... Qh5 {[%clk
0:02:02.3]} 7. Nc3 {[%clk 0:02:50]} 7... e5 {[%clk 0:01:29.1]} 8. d5 {[%clk
0:02:49.1]} 8... Bxf3 {[%clk 0:00:35.1]} 9. Bxf3 {[%clk 0:02:48.6]} 9... Qg6
{[%clk 0:00:34]} 10. Be3 {[%clk 0:02:33.5]} 10... f5 {[%clk 0:00:30.3]} 11. O-O
{[%clk 0:02:12.7]} 11... e4 {[%clk 0:00:29.4]} 12. Bh5 {[%clk 0:02:06.1]} 12...
Qf6 {[%clk 0:00:17.9]} 13. Qa4 {[%clk 0:02:03.3]} 13... Ne5 {[%clk 0:00:17.8]}
14. Qxa7 {[%clk 0:01:54.1]} 14... Qa6 {[%clk 0:00:08.2]} 15. Qd4 {[%clk
0:01:51.9]} 15... Nc6 {[%clk 0:00:04]} 16. Qd2 {[%clk 0:01:46.7]} 16... Qxc4
{[%clk 0:00:04]} 17. Be2 {[%clk 0:01:47.4]} 17... Qb4 {[%clk 0:00:04.5]} 18. Qc2
{[%clk 0:01:45.8]} 18... Nd4 {[%clk 0:00:04.3]} 19. Bxd4 {[%clk 0:01:45.1]}
19... Qxd4 {[%clk 0:00:05.2]} 20. Nb5 {[%clk 0:01:45]} 20... Qe5 {[%clk
0:00:05.8]} 21. Rac1 {[%clk 0:01:43.1]} 21... Bd6 {[%clk 0:00:06.2]} 22. g3
{[%clk 0:01:39.2]} 22... Ne7 {[%clk 0:00:06.7]} 23. Rfd1 {[%clk 0:01:33.8]}
23... f4 {[%clk 0:00:06.7]} 24. Bg4+ {[%clk 0:01:27.2]} 24... Kb8 {[%clk
0:00:06.5]} 25. Qa4 {[%clk 0:01:26.2]} 25... Nc8 {[%clk 0:00:06.4]} 26. Bxc8
{[%clk 0:01:19.3]} 26... Kxc8 {[%clk 0:00:07.3]} 27. Na7+ {[%clk 0:01:07.8]}
27... Kb8 {[%clk 0:00:07.2]} 28. Rc3 {[%clk 0:00:46.2]} 28... fxg3 {[%clk
0:00:05.6]} 29. Nc6+ {[%clk 0:00:34.8]} 29... bxc6 {[%clk 0:00:05]} 30. Qa6
{[%clk 0:00:16.8]} 30... gxf2+ {[%clk 0:00:04]} 31. Kf1 {[%clk 0:00:16.9]} 31...
Bb4 {[%clk 0:00:02.6]} 32. Rxc6 {[%clk 0:00:04.2]} 32... Rxd5 {[%clk 0:00:02.1]}
33. Rb6+ {[%clk 0:00:03.9]} 33... cxb6 {[%clk 0:00:02.2]} 34. Qxb6+ {[%clk
0:00:04.8]} 34... Kc8 {[%clk 0:00:02.7]} 35. Qc6+ {[%clk 0:00:04.8]} 35... Qc7
{[%clk 0:00:03.4]} 36. Qxd5 {[%clk 0:00:04.6]} 36... Rd8 {[%clk 0:00:04]} 37.
Qe6+ {[%clk 0:00:03.7]} 37... Kb8 {[%clk 0:00:04.3]} 38. Rxd8+ {[%clk
0:00:02.2]} 38... Qxd8 {[%clk 0:00:05.2]} 39. Qe5+ {[%clk 0:00:02.2]} 39... Qd6
{[%clk 0:00:05.7]} 40. Qxe4 {[%clk 0:00:02.6]} 40... Bc5 {[%clk 0:00:06.3]} 41.
Qe8+ {[%clk 0:00:02]} 41... Kc7 {[%clk 0:00:06.5]} 42. Qf7+ {[%clk 0:00:02.5]}
42... Kc6 {[%clk 0:00:06.7]} 43. Qf3+ {[%clk 0:00:03.1]} 43... Kb6 {[%clk
0:00:07.2]} 44. a3 {[%clk 0:00:03.3]} 44... Qd4 {[%clk 0:00:06.7]} 45. b4 {[%clk
0:00:03.4]} 45... Qa1+ {[%clk 0:00:07]} 46. Kg2 {[%clk 0:00:03.7]} 46... Qg1+
{[%clk 0:00:07.4]} 47. Kh3 {[%clk 0:00:03.8]} 47... f1=Q+ {[%clk 0:00:08.2]} 0-1

[Event "Late-Titled-Tuesday-Blitz-February-06-2024"]
[Site "Chess.com"]
[Date "2024.02.06"]
[Round "4"]
[White "Akhayan"]
[Black "Dinamo3"]
[Result "1/2-1/2"]
[WhiteElo "2375"]
[BlackElo "2519"]
[TimeControl "180+1"]
[EndTime "14:39:44 PST"]
[Termination "Game drawn by agreement"]

1. e4 {[%clk 0:03:00.9]} 1... c5 {[%clk 0:02:55.2]} 2. Nf3 {[%clk 0:03:01]} 2...
Nc6 {[%clk 0:02:55]} 3. Nc3 {[%clk 0:03:00.4]} 3... g6 {[%clk 0:02:54.8]} 4. Bc4
{[%clk 0:03:00.4]} 4... Bg7 {[%clk 0:02:54.8]} 5. O-O {[%clk 0:03:01.1]} 5... e6
{[%clk 0:02:55.4]} 6. d4 {[%clk 0:03:01.3]} 6... cxd4 {[%clk 0:02:15]} 7. Nb5
{[%clk 0:03:01.6]} 7... d6 {[%clk 0:02:13.7]} 8. Nfxd4 {[%clk 0:03:01]} 8...
Nxd4 {[%clk 0:02:09.2]} 9. Nxd4 {[%clk 0:03:00.7]} 9... a6 {[%clk 0:02:07.7]}
10. c3 {[%clk 0:03:00.5]} 10... Ne7 {[%clk 0:02:06.4]} 11. Be3 {[%clk 0:03:01]}
11... O-O {[%clk 0:02:06.6]} 12. Qd2 {[%clk 0:03:01.6]} 12... b5 {[%clk
0:02:06.1]} 13. Bb3 {[%clk 0:03:01]} 13... Qc7 {[%clk 0:02:02.1]} 14. Bg5 {[%clk
0:02:56.9]} 14... Re8 {[%clk 0:01:47.2]} 15. Rfe1 {[%clk 0:02:56.9]} 15... Nc6
{[%clk 0:01:43.2]} 16. Nxc6 {[%clk 0:02:50.3]} 16... Qxc6 {[%clk 0:01:44.1]} 17.
h3 {[%clk 0:02:49.9]} 17... Bb7 {[%clk 0:01:42.3]} 18. Rad1 {[%clk 0:02:48.5]}
18... Be5 {[%clk 0:00:53.9]} 19. Bf4 {[%clk 0:02:46.2]} 19... Bxf4 {[%clk
0:00:52.4]} 20. Qxf4 {[%clk 0:02:45.9]} 20... Rad8 {[%clk 0:00:52.5]} 21. h4
{[%clk 0:02:39.7]} 21... h5 {[%clk 0:00:49.5]} 22. Re3 {[%clk 0:02:34.5]} 22...
a5 {[%clk 0:00:48.2]} 23. Rde1 {[%clk 0:02:33.7]} 23... a4 {[%clk 0:00:48]} 24.
Bc2 {[%clk 0:02:34.3]} 24... e5 {[%clk 0:00:45.1]} 25. Qg5 {[%clk 0:02:29]}
25... Qd7 {[%clk 0:00:39.7]} 26. Rg3 {[%clk 0:02:28.3]} 26... Kh7 {[%clk
0:00:38]} 27. Bd1 {[%clk 0:02:26]} 27... Qe7 {[%clk 0:00:30.7]} 28. Qxe7 {[%clk
0:02:05.6]} 28... Rxe7 {[%clk 0:00:31.6]} 29. Rd3 {[%clk 0:02:05.5]} 29... d5
{[%clk 0:00:27.1]} 30. exd5 {[%clk 0:02:04.9]} 30... Rxd5 {[%clk 0:00:27.3]} 31.
Rxd5 {[%clk 0:02:03.8]} 31... Bxd5 {[%clk 0:00:28.2]} 32. a3 {[%clk 0:02:04.1]}
32... f6 {[%clk 0:00:28.4]} 33. Be2 {[%clk 0:02:04.6]} 33... Bc4 {[%clk
0:00:27.9]} 34. Bxc4 {[%clk 0:01:48.2]} 34... bxc4 {[%clk 0:00:28.8]} 35. Re4
{[%clk 0:01:48.3]} 35... Rc7 {[%clk 0:00:22]} 36. f4 {[%clk 0:01:47.1]} 36...
Rc5 {[%clk 0:00:22.1]} 37. fxe5 {[%clk 0:01:46.7]} 37... fxe5 {[%clk 0:00:23]}
38. Kf2 {[%clk 0:01:43]} 38... Kg7 {[%clk 0:00:23.5]} 39. Re2 {[%clk 0:01:38.7]}
39... Kf6 {[%clk 0:00:22]} 40. Ke3 {[%clk 0:01:39.3]} 40... Ke6 {[%clk
0:00:20.3]} 41. Ke4 {[%clk 0:01:39.5]} 41... Rb5 {[%clk 0:00:20.5]} 42. Rd2
{[%clk 0:01:37.7]} 42... Rb8 {[%clk 0:00:18.6]} 43. g3 {[%clk 0:01:35.9]} 43...
Rb5 {[%clk 0:00:18.4]} 44. Rf2 {[%clk 0:01:33.5]} 44... Rb8 {[%clk 0:00:17.4]}
45. Rd2 {[%clk 0:01:34]} 45... Rb5 {[%clk 0:00:17.6]} 46. Re2 {[%clk 0:01:21.7]}
46... Rb6 {[%clk 0:00:15.4]} 47. Rf2 {[%clk 0:01:21.7]} 47... Rb8 {[%clk
0:00:14.1]} 48. Rg2 {[%clk 0:01:14.7]} 48... Rd8 {[%clk 0:00:12.2]} 49. g4
{[%clk 0:01:13.1]} 49... hxg4 {[%clk 0:00:11.4]} 50. Rxg4 {[%clk 0:01:13.8]}
50... Kf6 {[%clk 0:00:11.9]} 51. Rg2 {[%clk 0:01:12.9]} 51... Rh8 {[%clk
0:00:11]} 52. Rf2+ {[%clk 0:01:13]} 52... Ke6 {[%clk 0:00:11.4]} 53. Rg2 {[%clk
0:01:12.1]} 53... Rxh4+ {[%clk 0:00:11.1]} 54. Ke3 {[%clk 0:01:12.3]} 54... Kf5
{[%clk 0:00:10.7]} 55. Rf2+ {[%clk 0:01:12.4]} 55... Rf4 {[%clk 0:00:10.6]} 56.
Rh2 {[%clk 0:01:11.1]} 56... g5 {[%clk 0:00:10.8]} 57. Rh8 {[%clk 0:01:09.2]}
57... Rh4 {[%clk 0:00:11]} 58. Rf8+ {[%clk 0:01:09.2]} 58... Kg4 {[%clk
0:00:10.2]} 59. Ke4 {[%clk 0:01:09.6]} 59... Rh2 {[%clk 0:00:10.3]} 60. Kxe5
{[%clk 0:01:06.9]} 60... Rxb2 {[%clk 0:00:10.6]} 61. Rc8 {[%clk 0:01:07.5]}
61... Kg3 {[%clk 0:00:08.1]} 62. Rxc4 {[%clk 0:01:06.9]} 62... Rc2 {[%clk
0:00:06.2]} 63. Kf5 {[%clk 0:01:05.2]} 63... Kf3 {[%clk 0:00:02.8]} 64. Kxg5
{[%clk 0:01:02.7]} 64... Ke3 {[%clk 0:00:03.4]} 65. Kf5 {[%clk 0:00:59.8]} 65...
Kd3 {[%clk 0:00:03.5]} 66. Rxa4 {[%clk 0:00:59.9]} 66... Kxc3 {[%clk 0:00:03.4]}
67. Ra8 {[%clk 0:00:59.5]} 67... Ra2 {[%clk 0:00:03.7]} 68. Ke4 {[%clk
0:00:56.2]} 68... Kb3 {[%clk 0:00:04.2]} 69. Kd3 {[%clk 0:00:55.9]} 69... Rxa3
{[%clk 0:00:04.6]} 70. Rb8+ {[%clk 0:00:56.4]} 70... Ka2+ {[%clk 0:00:05.1]} 71.
Kc2 {[%clk 0:00:56.6]} 71... Ra7 {[%clk 0:00:05]} 72. Rb2+ {[%clk 0:00:55.9]}
72... Ka3 {[%clk 0:00:05.1]} 73. Rb1 {[%clk 0:00:55.6]} 73... Rc7+ {[%clk
0:00:04.9]} 74. Kd3 {[%clk 0:00:56]} 74... Rc8 {[%clk 0:00:05.1]} 1/2-1/2

[Event "Late-Titled-Tuesday-Blitz-February-06-2024"]
[Site "Chess.com"]
[Date "2024.02.06"]
[Round "4"]
[White "cthake"]
[Black "sari07"]
[Result "0-1"]
[WhiteElo "1808"]
[BlackElo "2431"]
[TimeControl "180+1"]
[EndTime "14:39:44 PST"]
[Termination "sari07 won on time"]

1. e4 {[%clk 0:03:00.9]} 1... e5 {[%clk 0:02:59.4]} 2. Nf3 {[%clk 0:03:00.1]}
2... Nc6 {[%clk 0:03:00]} 3. d4 {[%clk 0:02:59.6]} 3... exd4 {[%clk 0:02:59.7]}
4. Bc4 {[%clk 0:03:00.1]} 4... Nf6 {[%clk 0:02:59.2]} 5. e5 {[%clk 0:02:57.5]}
5... d5 {[%clk 0:02:58.7]} 6. Bb5 {[%clk 0:02:54.8]} 6... Ne4 {[%clk 0:02:58.1]}
7. Nxd4 {[%clk 0:02:46.8]} 7... Bc5 {[%clk 0:02:58]} 8. c3 {[%clk 0:02:45.1]}
8... O-O {[%clk 0:02:56.3]} 9. Bxc6 {[%clk 0:02:40.8]} 9... bxc6 {[%clk
0:02:52.6]} 10. O-O {[%clk 0:02:39.9]} 10... Ba6 {[%clk 0:02:49.1]} 11. Re1
{[%clk 0:02:36.7]} 11... Bb6 {[%clk 0:02:32.6]} 12. Qg4 {[%clk 0:02:00.2]} 12...
f5 {[%clk 0:02:08.1]} 13. exf6 {[%clk 0:01:45.5]} 13... Qxf6 {[%clk 0:02:05.6]}
14. Be3 {[%clk 0:01:24.2]} 14... Nxf2 {[%clk 0:01:57.3]} 15. Qe6+ {[%clk
0:01:24.2]} 15... Qxe6 {[%clk 0:01:37.4]} 16. Nxe6 {[%clk 0:01:23.8]} 16... Rf6
{[%clk 0:01:16.4]} 17. Nd4 {[%clk 0:01:05.2]} 17... Raf8 {[%clk 0:01:03.6]} 18.
Nf3 {[%clk 0:00:59.1]} 18... Nd3 {[%clk 0:00:55.8]} 19. Re2 {[%clk 0:00:53.5]}
19... Nf4 {[%clk 0:00:53.4]} 20. Re1 {[%clk 0:00:51.5]} 20... Nh3+ {[%clk
0:00:33]} 21. Kh1 {[%clk 0:00:44.5]} 21... Bxe3 {[%clk 0:00:15.3]} 22. Rxe3
{[%clk 0:00:43]} 22... Ng5 {[%clk 0:00:16.2]} 23. Nbd2 {[%clk 0:00:41.3]} 23...
Nxf3 {[%clk 0:00:10.2]} 24. Nxf3 {[%clk 0:00:40.6]} 24... Bc8 {[%clk 0:00:08.4]}
25. Rae1 {[%clk 0:00:37.6]} 25... Bf5 {[%clk 0:00:08.4]} 26. h3 {[%clk
0:00:35.2]} 26... Be4 {[%clk 0:00:08.5]} 27. Rf1 {[%clk 0:00:31.5]} 27... Bxf3
{[%clk 0:00:07.9]} 28. Rfxf3 {[%clk 0:00:30.9]} 28... Rxf3 {[%clk 0:00:07.9]}
29. gxf3 {[%clk 0:00:28.3]} 29... Kf7 {[%clk 0:00:08.8]} 30. c4 {[%clk
0:00:17.5]} 30... Re8 {[%clk 0:00:08.9]} 31. Ra3 {[%clk 0:00:11.4]} 31... Re1+
{[%clk 0:00:08.7]} 32. Kh2 {[%clk 0:00:11.5]} 32... Re2+ {[%clk 0:00:09.6]} 33.
Kg3 {[%clk 0:00:11.8]} 33... Rxb2 {[%clk 0:00:08.6]} 34. Rxa7 {[%clk 0:00:11.8]}
34... dxc4 {[%clk 0:00:04.9]} 35. Rxc7+ {[%clk 0:00:11.8]} 35... Kf8 {[%clk
0:00:05.5]} 36. Rxc6 {[%clk 0:00:12]} 36... Rc2 {[%clk 0:00:04]} 37. a4 {[%clk
0:00:11.5]} 37... c3 {[%clk 0:00:04.1]} 38. a5 {[%clk 0:00:11.8]} 38... Rc1
{[%clk 0:00:04.6]} 39. a6 {[%clk 0:00:11.8]} 39... Ra1 {[%clk 0:00:04.5]} 40.
Rxc3 {[%clk 0:00:10.5]} 40... Rxa6 {[%clk 0:00:05]} 41. Rc7 {[%clk 0:00:10.6]}
41... Kg8 {[%clk 0:00:04.6]} 42. h4 {[%clk 0:00:10.7]} 42... h6 {[%clk
0:00:04.5]} 43. f4 {[%clk 0:00:10.5]} 43... h5 {[%clk 0:00:04.2]} 44. Kf3 {[%clk
0:00:09.4]} 44... Kh7 {[%clk 0:00:04.2]} 45. Rc5 {[%clk 0:00:07.3]} 45... Kg6
{[%clk 0:00:03.9]} 46. Rg5+ {[%clk 0:00:06.3]} 46... Kh6 {[%clk 0:00:03.7]} 47.
Rc5 {[%clk 0:00:06.3]} 47... Ra3+ {[%clk 0:00:02.7]} 48. Ke4 {[%clk 0:00:05.9]}
48... g6 {[%clk 0:00:03.2]} 49. Rg5 {[%clk 0:00:04.1]} 49... Rh3 {[%clk
0:00:03.1]} 0-1

[Event "Late-Titled-Tuesday-Blitz-February-06-2024"]
[Site "Chess.com"]
[Date "2024.02.06"]
[Round "4"]
[White "szachmistrz2500"]
[Black "Korchmar_Vasiliy"]
[Result "0-1"]
[WhiteElo "2501"]
[BlackElo "2723"]
[TimeControl "180+1"]
[EndTime "14:39:48 PST"]
[Termination "Korchmar_Vasiliy won on time"]

1. d4 {[%clk 0:02:56.4]} 1... d5 {[%clk 0:02:59.2]} 2. c4 {[%clk 0:02:54.1]}
2... c6 {[%clk 0:02:59.6]} 3. Nf3 {[%clk 0:02:53.5]} 3... Nf6 {[%clk 0:03:00]}
4. Qc2 {[%clk 0:02:51.2]} 4... Bg4 {[%clk 0:02:59.1]} 5. Ne5 {[%clk 0:02:48.2]}
5... Be6 {[%clk 0:02:59.4]} 6. Bf4 {[%clk 0:02:42.8]} 6... g6 {[%clk 0:02:57.1]}
7. e3 {[%clk 0:02:40]} 7... Nh5 {[%clk 0:02:57.6]} 8. Bg3 {[%clk 0:02:37.4]}
8... Bg7 {[%clk 0:02:56.5]} 9. Nd2 {[%clk 0:02:31.4]} 9... Nxg3 {[%clk
0:02:53.9]} 10. hxg3 {[%clk 0:02:31.6]} 10... O-O {[%clk 0:02:52.7]} 11. Bd3
{[%clk 0:02:26.5]} 11... c5 {[%clk 0:02:49.4]} 12. cxd5 {[%clk 0:01:54.6]} 12...
Bxd5 {[%clk 0:02:42.8]} 13. O-O {[%clk 0:01:36.3]} 13... cxd4 {[%clk 0:02:40.6]}
14. exd4 {[%clk 0:01:36.2]} 14... Nc6 {[%clk 0:02:40.9]} 15. Nxc6 {[%clk
0:01:29.4]} 15... Bxc6 {[%clk 0:02:41.8]} 16. Nb3 {[%clk 0:01:18.4]} 16... Qd5
{[%clk 0:02:34.9]} 17. f3 {[%clk 0:01:12.5]} 17... Bxd4+ {[%clk 0:02:35.1]} 18.
Nxd4 {[%clk 0:01:11.7]} 18... Qxd4+ {[%clk 0:02:36]} 19. Rf2 {[%clk 0:01:08.9]}
19... Rfd8 {[%clk 0:02:34]} 20. Bc4 {[%clk 0:01:08.3]} 20... Rac8 {[%clk
0:02:32.6]} 21. Qb3 {[%clk 0:01:07.5]} 21... e6 {[%clk 0:02:27.8]} 22. Bf1
{[%clk 0:01:02.4]} 22... Bd5 {[%clk 0:02:23.1]} 23. Qd3 {[%clk 0:00:57.9]} 23...
Qb6 {[%clk 0:02:19]} 24. Qb5 {[%clk 0:00:52.4]} 24... Qd4 {[%clk 0:02:14.7]} 25.
Qd3 {[%clk 0:00:51.1]} 25... Qxd3 {[%clk 0:01:54.8]} 26. Bxd3 {[%clk 0:00:50.7]}
26... Bc6 {[%clk 0:01:55.7]} 27. Rd1 {[%clk 0:00:44.9]} 27... Rd4 {[%clk
0:01:51.9]} 28. Bc2 {[%clk 0:00:37.1]} 28... Rxd1+ {[%clk 0:01:49.9]} 29. Bxd1
{[%clk 0:00:37.2]} 29... Rd8 {[%clk 0:01:50.8]} 30. Bb3 {[%clk 0:00:34.5]} 30...
h5 {[%clk 0:01:44.3]} 31. Rc2 {[%clk 0:00:34.2]} 31... Kg7 {[%clk 0:01:43.6]}
32. Kf2 {[%clk 0:00:34.5]} 32... g5 {[%clk 0:01:43.2]} 33. Ke3 {[%clk
0:00:34.6]} 33... Kf6 {[%clk 0:01:43.3]} 34. a4 {[%clk 0:00:34.7]} 34... Rh8
{[%clk 0:01:32]} 35. a5 {[%clk 0:00:34.6]} 35... a6 {[%clk 0:01:32.2]} 36. Bc4
{[%clk 0:00:33.5]} 36... h4 {[%clk 0:01:32]} 37. gxh4 {[%clk 0:00:29.6]} 37...
gxh4 {[%clk 0:01:32.6]} 38. Bxa6 {[%clk 0:00:29.7]} 38... Ra8 {[%clk 0:01:32.6]}
39. Bd3 {[%clk 0:00:25.6]} 39... Rxa5 {[%clk 0:01:32.9]} 40. Be4 {[%clk
0:00:25.6]} 40... Bxe4 {[%clk 0:01:28.9]} 41. Kxe4 {[%clk 0:00:26]} 41... Rb5
{[%clk 0:01:28.7]} 42. Kf4 {[%clk 0:00:24.4]} 42... Rb4+ {[%clk 0:01:29.1]} 43.
Ke3 {[%clk 0:00:24.7]} 43... Kf5 {[%clk 0:01:28.6]} 44. Rc5+ {[%clk 0:00:24.2]}
44... e5 {[%clk 0:01:28.8]} 45. Rc7 {[%clk 0:00:23.6]} 45... Rb3+ {[%clk
0:01:28.1]} 46. Kd2 {[%clk 0:00:16.8]} 46... Rxb2+ {[%clk 0:01:28.1]} 47. Kc3
{[%clk 0:00:16.9]} 47... Rxg2 {[%clk 0:01:21.4]} 48. Rxf7+ {[%clk 0:00:17]}
48... Kg6 {[%clk 0:01:17.7]} 49. Rxb7 {[%clk 0:00:14.5]} 49... h3 {[%clk
0:01:18.2]} 50. Rb8 {[%clk 0:00:14.9]} 50... h2 {[%clk 0:01:18.3]} 51. Rh8
{[%clk 0:00:14.7]} 51... Kf5 {[%clk 0:01:16]} 52. Kd3 {[%clk 0:00:11.6]} 52...
Kf4 {[%clk 0:01:16.4]} 53. Rf8+ {[%clk 0:00:11.4]} 53... Kg3 {[%clk 0:01:16.6]}
54. Rh8 {[%clk 0:00:11.7]} 54... Kf2 {[%clk 0:01:16.3]} 55. Ke4 {[%clk
0:00:11.1]} 55... Ke2 {[%clk 0:01:02.3]} 56. Rh3 {[%clk 0:00:07.9]} 56... Kf1
{[%clk 0:00:29.7]} 57. Kxe5 {[%clk 0:00:06.6]} 57... Re2+ {[%clk 0:00:30.3]} 58.
Kf5 {[%clk 0:00:04.1]} 58... Kg2 {[%clk 0:00:31.2]} 59. Rh8 {[%clk 0:00:02.2]}
59... Kxf3 {[%clk 0:00:31.5]} 60. Kg5 {[%clk 0:00:02.1]} 60... Kg2 {[%clk
0:00:31.1]} 61. Kf4 {[%clk 0:00:01.6]} 61... h1=Q {[%clk 0:00:31.4]} 0-1